bitfinex/quotes_ETHUSD_20240819
["timestamp","ask_amount","ask_price","bid_price","bid_amount"]
[1724045960543,0.79324355,2634.8,2634.5,2.65705]
[1724045960904,2.4724,2634.7,2634.2,2.6573]
[1724045961230,0.32656436,2634.6,2634.2,2.6573]
[1724045961722,0.32656436,2634.6,2634.2,5.31457]
[1724045961903,2.4724,2634.7,2634.2,5.31457]
[1724045962100,2.4724,2634.7,2634.0,5.65748]
[1724045962432,2.4724,2634.7,2634.1,3.0]
[1724045962433,3.26564355,2634.7,2634.1,3.0]
[1724045962633,0.79324355,2634.6,2634.1,3.0]
[1724045962837,2.4279,2634.5,2633.6,2.65791]
[1724045963022,2.4279,2634.5,2633.3,2.4358]
[1724045963023,3.22114355,2634.3,2633.3,2.4358]
[1724045963230,0.79324355,2634.2,2633.3,2.4358]
[1724045963399,3.45070355,2634.1,2633.4,2.65815]
[1724045963741,1.48684286,2634.2,2633.6,2.65787]
[1724045963898,0.07229174,2634.0,2633.6,2.65787]
[1724045964096,0.0723331,2634.1,2633.6,2.65787]
[1724045964325,0.0723331,2634.1,2633.0,5.77052]
[1724045964326,2.3366,2633.8,2633.2,2.65834]
[1724045964536,2.3366,2633.8,2633.1,2.65846]
[1724045964732,0.07211182,2633.7,2633.1,2.65846]
[1724045964930,0.86535537,2633.7,2633.1,2.65846]
[1724045965244,0.07211182,2633.7,2633.1,2.65846]
[1724045966037,0.07211182,2633.7,2633.2,3.0]
[1724045968061,2.3366,2633.8,2633.2,3.0]
[1724045968262,0.23366,2633.7,2633.2,3.0]
[1724045968468,0.30499165,2633.7,2633.2,3.0]
[1724045968675,0.30499165,2633.7,2632.7,2.65882]
[1724045968676,4.96367,2633.6,2632.7,2.65882]
[1724045968853,5.0348968,2633.6,2632.7,2.65882]
[1724045969585,2.65818,2633.4,2632.6,2.65896]
[1724045969936,0.07106966,2633.3,2632.6,2.65896]
[1724045970145,0.07106966,2633.3,2632.7,3.0]
[1724045970550,0.07106966,2633.3,2632.7,5.65885]
[1724045971533,0.07106966,2633.3,2632.7,3.0]
[1724045971734,0.07106966,2633.3,2633.0,2.65856]
[1724045971947,2.3057,2633.6,2633.0,2.65856]
[1724045972152,0.07100796,2633.2,2633.0,2.65856]
[1724045972364,2.3057,2633.6,2633.0,2.65856]
[1724045972643,0.07109273,2633.5,2633.0,2.65849]
[1724045972981,0.07109273,2633.5,2633.3,2.65825]
[1724045973187,2.4281,2633.9,2633.2,2.65835]
[1724045973393,2.4281,2633.9,2633.2,5.31663]
[1724045973695,0.07123844,2633.8,2633.2,2.65828]
[1724045973890,0.58693228,2633.8,2633.2,2.65828]
[1724045974194,0.58693228,2633.8,2633.0,2.6585]
[1724045974195,0.58693228,2633.8,2633.3,2.65823]
[1724045974369,0.58693228,2633.8,2633.1,2.65838]
[1724045975561,0.58693228,2633.8,2633.2,2.65834]
[1724045978310,0.56727323,2633.7,2633.2,2.65834]
[1724045978633,0.07117262,2633.6,2633.2,2.65834]
[1724045980590,0.07117262,2633.6,2633.0,5.31701]
[1724045981217,0.07117262,2633.6,2632.8,7.80462]
[1724045981412,0.07117262,2633.6,2632.9,2.65858]
[1724045981413,3.11035259,2633.6,2632.9,2.65858]
[1724045983329,0.07117262,2633.6,2633.1,2.65844]
[1724045983507,0.07117262,2633.6,2632.9,5.3172]
[1724045983912,2.65786,2633.7,2633.0,2.65856]
[1724045984111,0.07113886,2633.5,2633.0,2.65856]
[1724045984314,0.60274724,2633.6,2633.0,2.65856]
[1724045984639,0.07113759,2633.5,2633.0,2.65856]
[1724045985343,0.07113759,2633.5,2632.9,2.65858]
[1724045986115,2.2699,2633.4,2632.8,2.4872]
[1724045986323,2.2699,2633.4,2632.8,5.4872]
[1724045986521,2.65842,2633.2,2632.8,3.0]
[1724045986716,2.65842,2633.2,2632.6,3.0]
[1724045986944,0.34387191,2633.1,2632.6,3.0]
[1724045990926,4.91754,2633.0,2632.6,3.0]
[1724045991166,4.91754,2633.0,2632.2,2.6593]
[1724045991167,2.65867,2632.9,2632.2,2.6593]
[1724045991463,0.757621,2632.8,2632.2,2.6593]
[1724045991866,0.07064952,2632.7,2632.2,2.6593]
[1724045993088,0.07064952,2632.7,2632.3,2.65926]
[1724045993539,4.91754,2633.0,2632.3,2.65926]
[1724045993877,0.51904901,2632.9,2632.3,2.65926]
[1724045994071,0.58972672,2632.9,2632.3,2.65926]
[1724045994273,0.58972672,2632.9,2632.4,2.65916]
[1724045994436,0.58972672,2632.9,2632.3,2.65919]
[1724045994632,0.07067771,2632.9,2632.3,2.65918]
[1724045995048,0.07067771,2632.9,2632.4,2.65907]
[1724045995252,0.07067771,2632.9,2632.5,2.318]
[1724045995451,0.07067771,2632.9,2632.5,4.97705]
[1724045995689,0.27295007,2633.1,2632.5,4.97705]
[1724045995871,0.07059991,2632.8,2632.5,2.65905]
[1724045996070,0.27295007,2633.1,2632.5,2.65905]
[1724045996286,0.07055851,2632.7,2632.5,2.65905]
[1724045996570,0.0705171,2632.6,2632.5,2.65905]
[1724045996816,2.93141007,2633.1,2632.3,7.58787]
[1724045997104,0.0706827,2633.0,2632.3,8.080738]
[1724045997410,0.0706827,2633.0,2632.3,7.58787]
[1724045997570,0.0706827,2633.0,2632.4,2.65915]
[1724045999006,0.0706827,2633.0,2632.3,4.92868]
[1724045999007,0.0706827,2633.0,2632.5,2.65906]
[1724045999916,0.0706827,2633.0,2632.5,2.659]
[1724046000465,0.0706827,2633.0,2632.3,7.5879]
[1724046000673,0.0706827,2633.0,2632.3,4.92868]
[1724046000876,0.0706827,2633.0,2632.3,2.65918]
[1724046000877,2.4081,2632.9,2632.3,2.65918]
[1724046001284,0.07059991,2632.8,2632.3,2.65918]
[1724046006427,2.2925,2632.5,2632.0,3.0]
[1724046006629,2.65919,2632.4,2631.7,2.65983]
[1724046006874,2.65919,2632.4,2631.4,2.4555]
[1724046006875,2.65953,2632.1,2631.4,2.4555]
[1724046007080,2.65937,2632.2,2631.3,2.6602]
[1724046007081,4.95209,2632.0,2631.3,2.6602]
[1724046007289,0.495209,2631.9,2631.3,2.6602]
[1724046007433,0.56304042,2631.9,2631.3,2.6602]
[1724046008390,0.56304042,2631.9,2631.4,3.0]
[1724046008736,0.56304042,2631.9,2631.3,2.6602]
[1724046008737,3.22271042,2631.9,2631.3,2.6602]
[1724046008957,0.81748004,2631.8,2631.3,2.6602]
[1724046009368,0.0677951,2631.7,2631.3,2.6602]
[1724046009730,2.2925,2632.0,2631.4,2.66016]
[1724046009929,0.06775367,2631.6,2631.4,2.66016]
[1724046010154,2.2925,2632.0,2631.4,2.66016]
[1724046010346,0.06747957,2631.5,2631.4,2.66016]
[1724046010593,2.2925,2632.0,2631.4,2.66016]
[1724046010761,0.06747957,2631.5,2631.4,2.66016]
[1724046010933,0.79324355,2632.2,2631.5,2.66006]
[1724046011133,13.66948255,2632.3,2631.6,4.98491]
[1724046011345,13.66948255,2632.3,2631.6,2.325]
[1724046012893,13.66948255,2632.3,2631.6,4.98497]
[1724046013043,1.36694826,2632.2,2631.6,4.98497]
[1724046014178,0.06748036,2632.1,2631.6,4.98497]
[1724046015353,0.06748036,2632.1,2631.7,2.65983]
[1724046015748,10.216969,2632.3,2631.7,2.65983]
[1724046015937,0.06745927,2632.0,2631.7,2.65983]
[1724046016138,10.216969,2632.3,2631.7,2.65983]
[1724046016334,0.06741783,2631.9,2631.7,5.31962]
[1724046016567,7.29,2632.3,2631.6,2.325]
[1724046016791,0.06758914,2631.8,2631.7,5.55224]
[1724046017081,7.29,2632.3,2632.1,2.65941]
[1724046017384,22.0546,2632.6,2632.1,2.65941]
[1724046017539,22.0546,2632.6,2631.9,2.65961]
[1724046017739,2.72465579,2632.5,2631.7,2.6598]
[1724046017965,2.47792558,2632.4,2631.7,2.6598]
[1724046018372,0.06552857,2632.3,2631.7,2.6598]
[1724046018693,0.06552857,2632.3,2631.8,2.6597]
[1724046019363,0.06552857,2632.3,2631.6,2.325]
[1724046019561,0.06552857,2632.3,2632.1,2.65938]
[1724046019894,0.06549095,2632.2,2632.1,2.65938]
[1724046020245,19.71,2632.5,2632.4,2.65917]
[1724046020850,19.71,2632.5,2632.4,5.11787]
[1724046021388,19.7753403,2632.5,2632.4,5.11787]
[1724046022612,0.0653403,2632.5,2632.4,5.11787]
[1724046022792,0.0653403,2632.5,2632.4,5.895574]
[1724046022952,5.92911355,2633.2,2632.4,5.895574]
[1724046023156,5.92911355,2633.2,2632.5,2.65905]
[1724046024861,3.27074355,2633.2,2632.5,2.65905]
[1724046025706,0.79324355,2633.1,2632.5,2.65905]
[1724046025858,3.27074355,2633.2,2632.6,2.65893]
[1724046026062,4.06246197,2633.2,2632.6,2.65893]
[1724046026589,0.79324355,2633.2,2632.8,2.65875]
[1724046026793,4.36419371,2633.4,2632.8,4.92245]
[1724046026965,0.66265641,2633.3,2632.8,2.2637]
[1724046027163,3.45134355,2633.5,2632.8,2.2637]
[1724046027718,0.79324355,2633.4,2632.8,2.2637]
[1724046029090,0.79324355,2633.4,2632.8,4.92245]
[1724046029412,1.48652292,2633.4,2632.8,4.92245]
[1724046029613,0.79324355,2633.4,2632.8,4.92245]
[1724046029815,3.45140355,2633.4,2632.8,4.92245]
[1724046030012,0.79324355,2633.4,2632.8,4.92244]
[1724046030813,0.06596968,2633.3,2632.8,4.92244]
[1724046031812,0.10520356,2633.3,2632.8,4.92244]
[1724046032827,1.37329684,2633.3,2632.8,2.2637]
[1724046033008,0.79324355,2633.2,2632.8,2.2637]
[1724046033326,0.10516619,2633.1,2632.8,2.2637]
[1724046034278,0.10516619,2633.1,2632.6,5.01439]
[1724046034516,0.10516619,2633.1,2632.4,8.01459]
[1724046034517,3.28603315,2633.1,2632.4,8.01459]
[1724046034825,0.79324355,2632.9,2632.2,5.01482]
[1724046034990,0.79324355,2632.9,2632.3,3.0]
[1724046034991,0.10515442,2632.8,2632.3,3.0]
[1724046035326,0.89839797,2632.8,2632.2,2.3555]
[1724046035524,2.65908,2632.5,2631.7,2.3565]
[1724046035825,2.65908,2632.5,2631.8,2.65977]
[1724046035826,0.37098262,2632.4,2631.8,2.65977]
[1724046037283,1.16422617,2632.4,2631.8,2.65977]
[1724046038721,3.82339617,2632.4,2631.7,2.3565]
[1724046039023,0.76744263,2632.3,2631.7,8.01636]
[1724046039223,0.10494904,2632.2,2631.7,8.01636]
[1724046039432,3.71832155,2632.4,2631.7,5.3565]
[1724046039614,0.10484049,2632.1,2631.7,5.3565]
[1724046039926,4.20952872,2632.3,2631.7,5.3565]
[1724046039927,2.65935,2632.3,2631.7,5.3565]
[1724046040144,0.10478515,2632.0,2631.7,5.3565]
[1724046040294,2.65935,2632.3,2631.7,5.3565]
[1724046040500,0.10474522,2631.9,2631.7,8.01637]
[1724046040711,1.05915155,2632.4,2631.7,8.01637]
[1724046040907,0.79324355,2632.4,2631.8,2.65977]
[1724046041625,27.79324355,2632.5,2631.9,2.65967]
[1724046041782,11.8926948,2632.5,2631.9,2.65967]
[1724046042518,0.79324355,2632.4,2631.9,2.65967]
[1724046042928,8.48195016,2632.5,2631.9,2.65967]
[1724046042929,0.09459326,2632.3,2631.9,2.65967]
[1724046043219,7.29,2632.5,2632.0,2.3221]
[1724046043732,0.09142025,2632.4,2632.0,2.3221]
[1724046044316,0.09142025,2632.4,2632.1,2.65938]
[1724046045012,0.09142025,2632.4,2632.0,4.98161]
[1724046045317,0.09142025,2632.4,2632.0,7.64111]
[1724046045519,0.09142025,2632.4,2632.0,8.52265667]
[1724046046105,0.09142025,2632.4,2632.0,5.86314667]
[1724046046314,0.09142025,2632.4,2632.0,4.9816]
[1724046046679,20.50324355,2632.6,2631.8,7.66903]
[1724046046680,3.13694355,2632.5,2631.8,7.66903]
[1724046046887,0.07407024,2632.3,2631.8,7.66903]
[1724046047087,0.86735371,2632.4,2631.8,7.66903]
[1724046047403,0.07403032,2632.2,2631.8,7.66903]
[1724046047605,0.07407024,2632.3,2631.9,2.65966]
[1724046047802,3.13694355,2632.5,2632.0,2.65957]
[1724046048003,0.07411016,2632.4,2632.0,2.65957]
[1724046048540,0.07411016,2632.4,2631.8,7.66899]
[1724046048683,0.86735371,2632.4,2631.8,7.66899]
[1724046049207,0.86735371,2632.4,2631.9,2.65961]
[1724046049401,0.07411016,2632.4,2631.9,2.65961]
[1724046049833,0.86735371,2632.4,2631.9,2.65961]
[1724046050701,0.07411016,2632.4,2632.0,2.65956]
[1724046055693,0.86735371,2632.4,2632.0,2.65956]
[1724046056200,0.07411016,2632.4,2632.0,2.65956]
[1724046058740,0.86735371,2632.4,2632.0,2.65956]
[1724046069785,0.86735371,2632.4,2631.8,8.96799]
[1724046070081,0.79324355,2632.3,2631.9,2.6596]
[1724046070444,0.07404302,2632.2,2631.9,2.6596]
[1724046070641,0.79324355,2632.3,2631.9,2.6596]
[1724046070848,0.07404302,2632.2,2631.9,2.6596]
[1724046071046,0.79324355,2632.4,2631.9,2.6596]
[1724046071279,0.07408295,2632.3,2632.0,2.65956]
[1724046071482,0.07408295,2632.3,2632.0,5.31907]
[1724046071647,0.07408295,2632.3,2632.0,3.95851]
[1724046071845,0.07408295,2632.3,2632.0,4.71830811]
[1724046072892,0.07408295,2632.3,2632.1,2.65946]
[1724046074348,0.07408295,2632.3,2632.0,7.37781811]
[1724046074582,0.8673265,2632.3,2632.0,3.95851]
[1724046076489,0.8673265,2632.3,2631.9,2.65967]
[1724046076786,0.79324355,2632.2,2631.9,2.65967]
[1724046077087,0.07399676,2632.1,2631.9,2.65967]
[1724046078460,0.86724031,2632.1,2631.9,2.65967]
[1724046080376,0.79324355,2632.0,2631.9,2.65967]
[1724046080780,0.8671953,2632.0,2631.9,2.65967]
[1724046081178,1.28318751,2632.0,2631.9,2.65967]
[1724046081354,0.48994396,2632.0,2631.9,2.65967]
[1724046082285,0.48994396,2632.0,2631.7,3.0]
[1724046082479,1.58946405,2631.8,2631.2,4.64291573]
[1724046082666,1.68047225,2631.7,2631.3,1.299]
[1724046083018,0.79370282,2631.5,2631.1,1.98261573]
[1724046083198,0.79370282,2631.2,2631.0,4.64313573]
[1724046083393,0.79370282,2631.2,2631.0,2.66052]
[1724046083589,0.07363709,2631.1,2631.0,2.66052]
[1724046083807,0.07363709,2631.1,2631.0,4.92692095]
[1724046084023,0.79370282,2631.4,2631.1,2.66047]
[1724046084312,0.0736827,2631.3,2631.0,3.62792095]
[1724046084524,0.86738552,2631.3,2631.1,3.0]
[1724046084884,0.0736827,2631.3,2631.1,3.0]
[1724046085208,0.86738552,2631.3,2631.1,3.0]
[1724046085574,0.0736827,2631.3,2631.1,3.0]
[1724046086615,0.0736827,2631.3,2631.1,6.95946]
[1724046087689,0.79370282,2631.5,2631.1,6.95946]
[1724046087883,0.07361249,2631.4,2631.1,6.95946]
[1724046089325,0.79370282,2631.6,2631.1,6.95946]
[1724046089326,0.07356365,2631.3,2631.1,8.147256]
[1724046089505,0.07356365,2631.3,2631.1,6.95946]
[1724046089704,0.79370282,2631.6,2631.1,6.95946]
[1724046089877,0.0735237,2631.2,2631.1,6.95946]
[1724046090076,0.79370282,2631.6,2631.1,6.95946]
[1724046090423,0.0736499,2631.5,2631.1,6.95946]
[1724046092584,0.79370282,2631.7,2631.1,6.95946]
[1724046092810,0.07360741,2631.4,2631.1,6.95946]
[1724046092976,0.79370282,2631.7,2631.1,8.147256]
[1724046093181,0.07356746,2631.3,2631.2,2.66038]
[1724046093392,0.79370282,2631.7,2631.2,2.66038]
[1724046094017,0.07368729,2631.6,2631.2,2.66038]
[1724046094917,0.07368729,2631.6,2631.1,4.299]
[1724046094918,0.86739011,2631.6,2631.1,4.299]
[1724046095120,1.22011312,2631.6,2631.1,4.299]
[1724046095317,0.79370282,2631.5,2631.1,4.299]
[1724046095523,0.86735017,2631.5,2631.1,4.299]
[1724046095726,3.34435017,2631.5,2631.0,2.6605]
[1724046097647,2.55064735,2631.5,2631.0,2.6605]
[1724046098025,2.55064735,2631.5,2631.0,5.32101]
[1724046098230,2.55064735,2631.5,2631.1,2.66047]
[1724046099503,0.07364735,2631.5,2631.1,2.66047]
[1724046099701,3.05700282,2631.7,2631.2,2.66038]
[1724046099949,0.07358452,2631.4,2631.2,2.66038]
[1724046100155,0.79370282,2631.7,2631.2,2.66038]
[1724046100308,0.07354458,2631.3,2631.2,2.66038]
[1724046100706,0.79370282,2631.7,2631.2,5.32069]
[1724046100949,0.07354458,2631.3,2631.2,2.66031]
[1724046101128,12.04267042,2631.9,2631.6,2.65995]
[1724046101129,0.79370282,2631.9,2631.6,2.65995]
[1724046101317,0.0735468,2631.8,2631.6,8.97426]
[1724046101521,0.79370282,2632.1,2631.9,2.65967]
[1724046101756,0.79370282,2632.1,2631.8,3.95877]
[1724046101961,0.79370282,2632.2,2631.8,3.95877]
[1724046102113,0.79370282,2632.2,2631.8,1.299]
[1724046102541,0.79370282,2632.2,2631.8,3.95874]
[1724046103758,0.07121304,2632.1,2631.8,3.95874]
[1724046103910,0.86491586,2632.1,2631.6,3.6544]
[1724046105018,0.79370282,2632.0,2631.6,3.6544]
[1724046105217,1.59283388,2632.1,2631.6,3.6544]
[1724046105422,0.07115351,2631.9,2631.6,3.6544]
[1724046105728,3.84980042,2632.2,2631.6,3.6544]
[1724046105729,0.07111357,2631.8,2631.6,3.6544]
[1724046106121,0.07107362,2631.7,2631.6,3.6544]
[1724046106310,0.79370282,2632.0,2631.6,6.31434]
[1724046106511,0.07107362,2631.7,2631.6,6.31434]
[1724046106739,0.79370282,2632.1,2631.6,6.31434]
[1724046107046,0.07107362,2631.7,2631.6,6.31434]
[1724046107212,0.79370282,2632.1,2631.6,6.31434]
[1724046107412,0.07107362,2631.7,2631.6,6.31434]
[1724046107612,0.79370282,2632.1,2631.6,6.31434]
[1724046107814,0.07107362,2631.7,2631.6,6.31434]
[1724046108013,0.79370282,2632.1,2631.6,7.211773]
[1724046108210,0.07107362,2631.7,2631.6,6.31434]
[1724046108435,0.79370282,2632.1,2631.6,6.31434]
[1724046108969,0.07119344,2632.0,2631.6,3.6544]
[1724046109147,0.86489626,2632.0,2631.6,3.6544]
[1724046109760,0.86489626,2632.0,2631.6,6.31434]
[1724046109934,0.86489626,2632.0,2631.7,2.65986]
[1724046110155,0.07119344,2632.0,2631.8,2.65974]
[1724046110875,0.07119344,2632.0,2631.8,3.95874]
[1724046111177,0.07119344,2632.0,2631.8,1.299]
[1724046111384,0.07119344,2632.0,2631.8,3.95876]
[1724046111535,0.07119344,2632.0,2631.9,2.65967]
[1724046111735,0.07119344,2632.0,2631.8,1.299]
[1724046111936,0.07119344,2632.0,2631.7,2.65979]
[1724046112137,0.86489626,2632.0,2631.6,3.6544]
[1724046112637,0.86489626,2632.0,2631.6,6.31437]
[1724046112837,0.07119344,2632.0,2631.6,6.31437]
[1724046113252,1.56542993,2632.0,2631.4,6.26077]
[1724046113600,0.86489626,2632.0,2631.6,1.299]
[1724046114655,0.79370282,2631.9,2631.6,1.299]
[1724046114872,0.07119344,2632.0,2631.6,1.299]
[1724046114873,0.86489626,2632.0,2631.6,1.299]
[1724046115045,0.07107722,2631.8,2631.6,1.299]
[1724046115243,0.79370282,2631.9,2631.6,1.299]
[1724046115753,0.07107722,2631.8,2631.6,1.299]
[1724046116683,0.07107722,2631.8,2631.6,3.95895]
[1724046118940,0.79370282,2632.0,2631.6,3.95895]
[1724046119171,0.07103728,2631.7,2631.6,3.95895]
[1724046119379,0.79370282,2632.0,2631.6,3.95895]
[1724046119585,0.07103728,2631.7,2631.6,3.95895]
[1724046119982,0.07103728,2631.7,2631.6,3.95892]
[1724046120169,0.79370282,2632.0,2631.6,3.95892]
[1724046120369,0.07103728,2631.7,2631.6,1.299]
[1724046120690,0.79370282,2632.0,2631.6,1.299]
[1724046120900,0.07103728,2631.7,2631.6,1.299]
[1724046121093,0.79370282,2632.0,2631.6,3.95897]
[1724046121592,0.07111717,2631.9,2631.6,3.95897]
[1724046122305,3.20710282,2631.8,2631.2,2.2996]
[1724046122501,0.79370282,2631.6,2631.3,2.66026]
[1724046122664,0.79370282,2631.6,2631.4,3.6759]
[1724046122863,0.79370282,2631.7,2631.5,2.66007]
[1724046123063,2.77983447,2632.0,2631.6,3.6759]
[1724046123064,0.79370282,2631.9,2631.6,3.6759]
[1724046123281,1.98407324,2632.0,2631.7,2.65981]
[1724046123476,0.79370282,2632.0,2631.7,2.65981]
[1724046124619,0.79370282,2632.0,2631.8,2.65977]
[1724046125124,0.79370282,2631.9,2631.8,2.65977]
[1724046126416,0.86488416,2631.9,2631.8,2.65977]
[1724046129018,0.86488416,2631.9,2631.8,4.98307]
[1724046129507,0.86488416,2631.9,2631.8,5.9406327]
[1724046129881,0.86488416,2631.9,2631.8,3.2808627]
[1724046130075,0.86488416,2631.9,2631.8,2.3233]
[1724046130470,0.86488416,2631.9,2631.8,6.28207]
[1724046130872,0.07118134,2631.9,2631.8,6.28207]
[1724046131114,0.07118134,2631.9,2631.8,8.94184]
[1724046131515,0.79370282,2632.2,2632.1,2.65947]
[1724046132708,1.19037042,2632.3,2632.0,2.4347]
[1724046132976,0.79199853,2632.1,2632.0,2.4347]
[1724046133398,0.79199853,2632.2,2632.0,2.4347]
[1724046133921,0.79199853,2632.2,2632.0,3.7337]
[1724046135118,0.07118893,2632.1,2632.0,3.7337]
[1724046135538,0.07118893,2632.1,2632.0,6.39327]
[1724046136143,0.07118893,2632.1,2632.0,3.7337]
[1724046137254,0.07118893,2632.1,2632.0,6.39327]
[1724046138456,0.07118893,2632.1,2632.0,3.7337]
[1724046138959,0.86318746,2632.1,2632.0,3.7337]
[1724046139663,0.07118893,2632.1,2632.0,3.7337]
[1724046142656,0.07118893,2632.1,2632.0,6.39327]
[1724046144112,0.07118893,2632.1,2632.0,3.7337]
[1724046145443,0.86318746,2632.1,2632.0,3.7337]
[1724046146669,0.86318746,2632.1,2632.0,6.39327]
[1724046147449,0.86318746,2632.1,2632.0,3.7337]
[1724046151217,0.48715141,2632.1,2631.7,7.70853]
[1724046151465,0.79264024,2632.0,2631.8,1.299]
[1724046151634,0.8634397,2632.0,2631.8,1.299]
[1724046152261,0.79264024,2631.9,2631.7,5.04869]
[1724046152490,0.86340103,2631.9,2631.7,5.04869]
[1724046153119,0.79264024,2631.8,2631.6,1.299]
[1724046153373,0.79264024,2631.8,2631.6,4.299]
[1724046153618,0.07065676,2631.7,2631.6,4.299]
[1724046153827,0.79264024,2631.8,2631.6,4.299]
[1724046153974,0.07065676,2631.7,2631.5,2.4094]
[1724046154174,0.79264024,2631.6,2631.4,1.299]
[1724046154463,0.79264024,2631.6,2631.4,4.299]
[1724046154464,0.07064391,2631.5,2631.4,4.299]
[1724046156178,0.07064391,2631.5,2631.4,6.95918]
[1724046156576,0.07064391,2631.5,2631.4,7.6881164]
[1724046158527,0.79264024,2631.6,2631.4,7.6881164]
[1724046158693,0.0705816,2631.5,2631.4,6.95918]
[1724046159291,0.0705816,2631.5,2631.4,3.0]
[1724046159497,0.0705816,2631.5,2631.4,4.299]
[1724046159722,0.79264024,2631.6,2631.4,4.299]
[1724046159907,0.07064184,2631.5,2631.4,4.299]
[1724046162695,0.07064184,2631.5,2631.4,6.95918]
[1724046162933,0.07064184,2631.5,2631.4,8.152214]
[1724046163597,0.79264024,2631.7,2631.4,8.152214]
[1724046163788,0.79264024,2631.7,2631.4,6.95918]
[1724046163789,0.07064184,2631.5,2631.4,6.95918]
[1724046163995,0.79264024,2631.7,2631.4,6.95918]
[1724046164298,1.19037042,2631.8,2631.4,6.95918]
[1724046164299,0.07064184,2631.5,2631.4,6.95918]
[1724046164519,0.79264024,2631.7,2631.4,6.95918]
[1724046164827,0.79264024,2631.7,2631.5,2.66001]
[1724046165034,0.0707536,2631.6,2631.5,2.66001]
[1724046169238,0.79264024,2631.8,2631.5,2.66001]
[1724046169397,0.07040027,2631.6,2631.5,2.66001]
[1724046169598,0.79264024,2631.8,2631.5,2.66001]
[1724046169821,0.07040027,2631.6,2631.5,2.66001]
[1724046170131,0.79264024,2631.8,2631.5,2.66001]
[1724046170330,0.07040027,2631.6,2631.5,2.66001]
[1724046170649,0.07040281,2631.6,2631.5,6.6323924]
[1724046170936,0.79264024,2631.9,2631.8,2.65977]
[1724046171143,0.79264024,2632.0,2631.8,2.65977]
[1724046172108,0.79264024,2631.9,2631.8,2.65977]
[1724046172325,0.79264024,2632.0,2631.8,2.65977]
[1724046173049,0.07053407,2631.9,2631.8,2.65977]
[1724046175472,0.07053407,2631.9,2631.6,2.65996]
[1724046175473,1.67678452,2631.9,2631.6,2.6599]
[1724046175620,0.7919904,2631.8,2631.6,2.6599]
[1724046175820,0.7919904,2631.7,2631.6,2.6599]
[1724046176016,0.86245976,2631.7,2631.6,2.6599]
[1724046178551,0.07046936,2631.7,2631.6,3.9589]
[1724046178762,0.07046936,2631.7,2631.6,2.6599]
[1724046178919,0.7919904,2631.8,2631.6,2.6599]
[1724046179123,0.07048763,2631.7,2631.6,2.6599]
[1724046179318,0.86247803,2631.7,2631.4,5.6601]
[1724046179567,0.7919904,2631.7,2631.4,3.0]
[1724046179735,0.86233033,2631.6,2631.4,3.0]
[1724046180134,0.86233033,2631.6,2631.1,2.66044]
[1724046180317,0.7919904,2631.5,2631.1,2.66044]
[1724046180655,0.0703678,2631.4,2631.1,2.66044]
[1724046181019,0.8623582,2631.4,2631.1,2.66044]
[1724046181219,0.0703678,2631.4,2631.1,2.66044]
[1724046182532,0.0703678,2631.4,2631.2,1.299]
[1724046182963,0.0703678,2631.4,2631.1,2.66044]
[1724046183254,0.0703678,2631.4,2631.1,3.95944]
[1724046184157,0.0703678,2631.4,2631.1,3.9594]
[1724046184361,0.0703678,2631.4,2631.3,3.95928]
[1724046184653,0.7919904,2631.6,2631.3,3.95928]
[1724046184860,0.07043233,2631.4,2631.3,3.95928]
[1724046185062,0.7919904,2631.6,2631.3,6.61949]
[1724046185221,0.7919904,2631.6,2631.3,3.95921]
[1724046185222,0.07043233,2631.4,2631.3,3.95921]
[1724046185425,0.7919904,2631.6,2631.3,3.95921]
[1724046185649,0.7919904,2631.6,2631.5,1.299]
[1724046185863,0.7919904,2631.7,2631.5,3.95901]
[1724046186075,0.07024006,2631.6,2631.5,3.95901]
[1724046186449,0.07024006,2631.6,2631.5,9.715801]
[1724046186650,0.07024006,2631.6,2631.5,9.05388]
[1724046186934,20.5019904,2631.9,2631.6,5.09475]
[1724046187148,20.5019904,2631.9,2631.7,1.299]
[1724046188336,20.5019904,2631.9,2631.7,3.95879]
[1724046189055,20.5019904,2631.9,2631.7,4.96539]
[1724046189271,20.5019904,2631.9,2631.7,6.26439]
[1724046189488,19.71,2631.9,2631.8,2.65977]
[1724046189775,20.5019904,2631.9,2631.7,3.6046]
[1724046189978,20.5019904,2631.9,2631.7,6.26447]
[1724046190752,20.5019904,2631.9,2631.7,8.92428]
[1724046191269,20.5019904,2631.9,2631.7,6.26441]
[1724046191457,20.5019904,2631.9,2631.8,2.65977]
[1724046191773,19.71,2631.9,2631.8,2.65977]
[1724046191980,20.5019904,2632.0,2631.8,2.65977]
[1724046192568,20.5019904,2632.0,2631.9,3.95867]
[1724046193353,19.77814133,2632.0,2631.9,3.95867]
[1724046193679,20.57040971,2632.0,2631.9,3.95867]
[1724046194240,19.77814133,2632.0,2631.9,3.95867]
[1724046194440,20.19404175,2632.0,2631.9,3.95867]
[1724046196459,21.38441217,2632.0,2631.9,3.95867]
[1724046196686,21.38441217,2632.0,2631.9,1.299]
[1724046197415,20.96851175,2632.0,2631.8,2.65976]
[1724046197586,0.79248352,2631.9,2631.8,2.65976]
[1724046197950,20.57058491,2631.9,2631.8,2.65976]
[1724046199006,20.57058491,2631.9,2631.8,5.00646]
[1724046206288,20.57058491,2631.9,2631.8,2.3467]
[1724046208054,20.57058491,2631.9,2631.8,5.00647]
[1724046209945,0.86058491,2631.9,2631.8,5.00647]
[1724046210177,0.06810139,2631.9,2631.8,8.562777]
[1724046210378,0.06810139,2631.9,2631.8,12.112777]
[1724046210688,3.17094551,2632.5,2632.3,5.15397]
[1724046210689,0.79248352,2632.4,2632.3,5.15397]
[1724046210985,0.79248352,2632.4,2632.3,2.4947]
[1724046211975,1.19037042,2632.6,2632.3,2.4947]
[1724046211976,0.79248352,2632.5,2632.3,5.15391]
[1724046212136,1.19037042,2632.6,2632.4,3.95817]
[1724046212137,0.79248352,2632.6,2632.4,3.95817]
[1724046212738,0.79248352,2632.7,2632.4,3.95817]
[1724046214147,0.06303082,2632.6,2632.4,3.95817]
[1724046215164,0.06303082,2632.6,2632.5,2.3253]
[1724046215369,0.06303082,2632.6,2632.5,7.64342]